bitfinex/quotes_BTCUSD_20251205
["timestamp","ask_amount","ask_price","bid_price","bid_amount"]
[1764930887682,0.24767753,91392.0,91391.0,0.323]
[1764930887906,0.04392,91392.0,91391.0,0.323]
[1764930888112,0.02092,91392.0,91391.0,0.323]
[1764930888247,0.00584,91392.0,91391.0,0.323]
[1764930888588,0.00584,91392.0,91390.0,0.323]
[1764930889313,0.0109402,91406.0,91405.0,0.02156672]
[1764930889590,0.229749,91405.0,91404.0,0.02156672]
[1764930889796,0.00576,91407.0,91406.0,0.02156672]
[1764930889954,0.01158,91408.0,91405.0,0.21880641]
[1764930889955,0.01158,91408.0,91407.0,0.02156672]
[1764930890767,0.04966,91408.0,91407.0,0.02156672]
[1764930891170,0.02766,91408.0,91407.0,0.02156672]
[1764930892544,0.001,91408.0,91407.0,0.24036834]
[1764930892749,0.001,91408.0,91407.0,0.27986834]
[1764930893350,0.002,91408.0,91407.0,0.24036834]
[1764930893709,0.001,91408.0,91407.0,0.24036834]
[1764930894934,0.01093972,91410.0,91409.0,0.02156672]
[1764930895673,1.18565832,91443.0,91415.0,0.02156672]
[1764930895674,0.01158,91416.0,91415.0,0.02156672]
[1764930895878,0.22976779,91418.0,91415.0,0.02156672]
[1764930896008,5.233e-05,91418.0,91417.0,0.21877768]
[1764930896619,5.233e-05,91418.0,91417.0,0.2403444]
[1764930897266,0.00105233,91418.0,91417.0,0.2403444]
[1764930897970,0.00105233,91418.0,91417.0,0.02156672]
[1764930898316,0.2187897,91412.0,91410.0,0.323]
[1764930898548,0.23387204,91411.0,91410.0,0.323]
[1764930898738,0.23387204,91411.0,91410.0,0.34028]
[1764930899282,0.23387204,91411.0,91410.0,0.01728]
[1764930899569,0.23387204,91411.0,91410.0,0.01828]
[1764930899773,0.23387204,91411.0,91410.0,0.01728]
[1764930900157,0.21879204,91411.0,91410.0,0.34128]
[1764930900360,0.2187897,91412.0,91411.0,0.02156672]
[1764930901487,0.01093936,91413.0,91412.0,0.02156672]
[1764930901684,0.01093924,91414.0,91413.0,0.02156672]
[1764930901890,0.22972431,91414.0,91413.0,0.02156672]
[1764930902097,0.26780431,91414.0,91413.0,0.02156672]
[1764930902391,0.21878965,91412.0,91411.0,0.02156672]
[1764930902537,0.21879683,91409.0,91405.0,0.03884672]
[1764930902730,0.21880401,91406.0,91405.0,0.02156672]
[1764930903016,0.21881359,91402.0,91401.0,0.323]
[1764930903167,0.21881598,91401.0,91400.0,0.03884672]
[1764930903346,0.21881598,91401.0,91400.0,0.02156672]
[1764930904467,0.21882316,91398.0,91396.0,0.323]
[1764930904671,0.24548556,91397.0,91396.0,0.323]
[1764930904880,0.21882795,91396.0,91395.0,0.01728]
[1764930905084,0.22975984,91400.0,91396.0,0.03461]
[1764930905282,0.01093984,91409.0,91405.0,0.01094032]
[1764930905503,0.01093984,91409.0,91404.0,0.323]
[1764930905504,0.01093984,91409.0,91408.0,0.02156672]
[1764930905699,0.01093984,91409.0,91406.0,0.0109402]
[1764930905700,0.01158,91413.0,91411.0,0.24035741]
[1764930905881,0.010939,91416.0,91413.0,0.2187864]
[1764930906082,5.233e-05,91418.0,91417.0,0.02156672]
[1764930907906,0.00105233,91418.0,91417.0,0.02156672]
[1764930908635,0.00105233,91418.0,91417.0,0.03814672]
[1764930908823,0.00205233,91418.0,91417.0,0.06106672]
[1764930909236,0.00105233,91418.0,91417.0,0.06106672]
[1764930909584,0.00205233,91418.0,91417.0,0.06106672]
[1764930909706,0.00105233,91418.0,91417.0,0.06106672]
[1764930910813,5.233e-05,91418.0,91417.0,0.06106672]
[1764930911016,0.00105233,91418.0,91417.0,0.06106672]
[1764930911213,0.00205233,91418.0,91417.0,0.0395]
[1764930911419,0.00205233,91418.0,91417.0,0.06106672]
[1764930912555,0.00205233,91418.0,91417.0,0.2915344]
[1764930916238,0.00205233,91418.0,91417.0,0.6309154]
[1764930933459,0.00205233,91418.0,91417.0,1.9706674]
[1764930934241,0.00105233,91418.0,91417.0,1.9706674]
[1764930934667,5.233e-05,91418.0,91417.0,1.9716674]
[1764930934885,5.233e-05,91418.0,91417.0,1.7821874]
[1764930935091,5.233e-05,91418.0,91417.0,1.3929694]
[1764930935287,5.233e-05,91418.0,91417.0,0.9105444]
[1764930935692,5.233e-05,91418.0,91417.0,0.35725672]
[1764930936027,0.21882762,91418.0,91417.0,0.34556672]
[1764930936199,0.21882762,91418.0,91417.0,0.36284672]
[1764930936441,0.21882762,91418.0,91417.0,0.001]
[1764930936442,0.25719762,91418.0,91417.0,0.001]
[1764930936664,0.34923625,91418.0,91417.0,0.001]
[1764930936910,0.01094271,91385.0,91384.0,0.02156672]
[1764930937105,0.01094271,91385.0,91372.0,0.02299]
[1764930937106,0.22981964,91376.0,91375.0,0.02156672]
[1764930937744,0.22981964,91376.0,91353.0,0.02822654]
[1764930937745,0.01094582,91359.0,91353.0,0.02822654]
[1764930937991,0.2189195,91358.0,91354.0,0.22987367]
[1764930938166,0.22991646,91359.0,91355.0,0.541925]
[1764930938412,0.22991646,91359.0,91356.0,0.01094618]
[1764930938413,5.227e-05,91359.0,91356.0,0.01094618]
[1764930938630,5.227e-05,91359.0,91358.0,0.02156672]
[1764930939068,5.227e-05,91359.0,91358.0,0.34456672]
[1764930941017,5.227e-05,91359.0,91358.0,0.34556672]
[1764930941447,5.227e-05,91359.0,91358.0,0.02256672]
[1764930941672,0.03842227,91359.0,91358.0,0.006]
[1764930942509,0.01553227,91359.0,91358.0,0.001]
[1764930942739,0.03842227,91359.0,91358.0,0.001]
[1764930942969,0.21891897,91358.0,91357.0,0.02156672]
[1764930943180,0.21896929,91359.0,91357.0,0.02156672]
[1764930943852,5.227e-05,91359.0,91358.0,0.325]
[1764930944068,5.227e-05,91359.0,91358.0,0.323]
[1764930944308,5.227e-05,91359.0,91358.0,0.38450672]
[1764930944518,5.227e-05,91359.0,91358.0,0.34456672]
[1764930945592,5.227e-05,91359.0,91358.0,0.02356672]
[1764930945809,5.227e-05,91359.0,91358.0,0.34656672]
[1764930946707,0.05192227,91359.0,91358.0,0.323]
[1764930946931,0.05192227,91359.0,91357.0,0.02156672]
[1764930946932,0.21891897,91358.0,91357.0,0.02156672]
[1764930947153,0.23486897,91358.0,91357.0,0.02156672]
[1764930948297,0.25921897,91358.0,91357.0,0.02256672]
[1764930949767,0.01162227,91359.0,91357.0,0.02256672]
[1764930949991,5.227e-05,91359.0,91357.0,0.02256672]
[1764930950202,5.227e-05,91359.0,91357.0,0.324]
[1764930950403,5.227e-05,91359.0,91357.0,0.34556672]
[1764930950808,5.227e-05,91359.0,91358.0,0.02156672]
[1764930951012,5.227e-05,91359.0,91358.0,0.03750672]
[1764930951237,5.227e-05,91359.0,91358.0,0.38365672]
[1764930951873,5.227e-05,91359.0,91358.0,0.60257569]
[1764930952077,5.227e-05,91359.0,91358.0,0.57942569]
[1764930952280,5.227e-05,91359.0,91358.0,0.60257569]
[1764930954113,5.227e-05,91359.0,91358.0,0.60457569]
[1764930960345,5.227e-05,91359.0,91358.0,0.56548569]
[1764930960556,5.227e-05,91359.0,91358.0,0.22091897]
[1764930960910,0.27083885,91359.0,91358.0,0.02356672]
[1764930961322,0.27083885,91359.0,91358.0,0.002]
[1764930962835,0.22989187,91348.0,91345.0,0.3339475]
[1764930962997,0.22989187,91348.0,91345.0,0.55289607]
[1764930963199,0.01094642,91354.0,91350.0,0.02156672]
[1764930963438,5.227e-05,91359.0,91356.0,0.01094618]
[1764930963700,5.227e-05,91359.0,91358.0,0.02156672]
[1764930963873,5.227e-05,91359.0,91358.0,0.24048569]
[1764930964066,5.227e-05,91359.0,91358.0,0.02156672]
[1764930964420,5.227e-05,91359.0,91358.0,0.24048569]
[1764930964822,0.21896885,91359.0,91358.0,0.02156672]
[1764930965061,5.227e-05,91359.0,91358.0,0.23485897]
[1764930965264,5.227e-05,91359.0,91358.0,0.56348569]
[1764930966536,5.227e-05,91359.0,91358.0,0.55799569]
[1764930967620,5.227e-05,91359.0,91358.0,0.59708569]
[1764930970941,5.227e-05,91359.0,91358.0,0.57393569]
[1764930971980,5.227e-05,91359.0,91358.0,0.59708569]
[1764930972723,5.227e-05,91359.0,91358.0,0.59908569]
[1764930973383,5.227e-05,91359.0,91358.0,0.55999569]
[1764930973384,0.02757227,91359.0,91358.0,0.55999569]
[1764930973554,0.02757227,91359.0,91358.0,0.325]
[1764930974184,0.05198227,91359.0,91358.0,0.325]
[1764930974636,0.05198227,91359.0,91358.0,0.002]
[1764930975482,0.07934684,91359.0,91358.0,0.002]
[1764930975904,0.2189365,91351.0,91350.0,0.02156672]
[1764930976302,0.21893456,91352.0,91350.0,0.02156672]
[1764930976504,0.00631,91351.0,91350.0,0.02156672]
[1764930976707,0.04708,91351.0,91350.0,0.02156672]
[1764930977309,0.01094618,91356.0,91350.0,0.02156672]
[1764930977310,5.227e-05,91359.0,91356.0,0.01094618]
[1764930977487,0.2189694,91359.0,91358.0,0.02156672]
[1764930977705,5.227e-05,91359.0,91358.0,0.02156672]
[1764930978541,5.227e-05,91359.0,91357.0,0.21891924]
[1764930978742,5.227e-05,91359.0,91358.0,0.03762672]
[1764930978956,5.227e-05,91359.0,91358.0,0.28012569]
[1764930979153,0.00105227,91359.0,91358.0,0.28012569]
[1764930979387,5.227e-05,91359.0,91358.0,0.28012569]
[1764930979808,0.00105227,91359.0,91358.0,0.62040569]
[1764930979969,0.00105227,91359.0,91358.0,0.56348569]
[1764930980172,0.00205227,91359.0,91358.0,0.54191897]
[1764930980405,0.00205227,91359.0,91358.0,0.56348569]
[1764930980628,5.227e-05,91359.0,91358.0,0.56348569]
[1764930981065,0.00105227,91359.0,91358.0,0.56348569]
[1764930982169,5.227e-05,91359.0,91358.0,0.60312569]
[1764930982598,5.227e-05,91359.0,91358.0,0.60512569]
[1764930986450,5.227e-05,91359.0,91358.0,0.56548569]
[1764930986710,5.227e-05,91359.0,91358.0,0.58276569]
[1764930987555,5.227e-05,91359.0,91358.0,0.34656672]
[1764930987757,0.21896885,91359.0,91358.0,0.36384672]
[1764930988176,5.227e-05,91359.0,91358.0,0.36384672]
[1764930988394,5.227e-05,91359.0,91358.0,0.59882569]
[1764930988595,5.227e-05,91359.0,91358.0,0.60083897]
[1764930988797,5.227e-05,91359.0,91358.0,0.62240569]
[1764930993571,5.227e-05,91359.0,91358.0,0.58276569]
[1764930994549,5.227e-05,91359.0,91358.0,0.62240569]
[1764930994749,5.227e-05,91359.0,91358.0,0.63878669]
[1764930996742,5.227e-05,91359.0,91358.0,0.61721997]
[1764930996994,5.227e-05,91359.0,91358.0,0.63878669]
[1764930997406,5.227e-05,91359.0,91358.0,0.62240569]
[1764930997587,5.227e-05,91359.0,91358.0,0.63878669]
[1764931005373,5.227e-05,91359.0,91358.0,1.42192069]
[1764931007073,5.227e-05,91359.0,91358.0,1.11967769]
[1764931008239,5.227e-05,91359.0,91358.0,0.86742669]
[1764931011751,5.227e-05,91359.0,91358.0,0.92994968]
[1764931012851,5.227e-05,91359.0,91358.0,0.92794968]
[1764931013248,2.53e-06,91359.0,91358.0,0.93594968]
[1764931013694,2.53e-06,91359.0,91358.0,0.93494968]
[1764931013909,2.53e-06,91359.0,91358.0,0.93594968]
[1764931023299,0.228289,91388.0,91387.0,0.24041622]
[1764931023428,0.228289,91388.0,91387.0,0.25546622]
[1764931023640,0.228289,91388.0,91387.0,0.27985622]
[1764931024564,0.228289,91388.0,91387.0,0.60285622]
[1764931025406,0.229289,91388.0,91387.0,0.60285622]
[1764931035020,0.44813611,91388.0,91387.0,0.34456672]
[1764931035219,0.46454611,91388.0,91387.0,0.323]
[1764931035416,0.01094439,91371.0,91365.0,0.24180531]
[1764931035631,0.22983206,91372.0,91369.0,0.02156672]
[1764931035827,0.218888,91371.0,91369.0,0.34456672]
[1764931036182,0.01094427,91372.0,91369.0,0.02156672]
[1764931036384,0.01094427,91372.0,91369.0,0.34456672]
[1764931036815,0.22983197,91372.0,91369.0,0.5634588]
[1764931037024,0.21888786,91371.0,91369.0,0.34456672]
[1764931037730,0.21887585,91376.0,91375.0,0.02156672]
[1764931038847,0.21887585,91376.0,91375.0,0.02256672]
[1764931042060,0.23487931,91377.0,91375.0,0.02256672]
[1764931042412,0.21887585,91376.0,91375.0,0.02256672]
[1764931042914,0.23487931,91377.0,91375.0,0.02256672]
[1764931043531,0.21887585,91376.0,91375.0,0.02256672]
[1764931044118,0.21887585,91376.0,91375.0,0.02156672]
[1764931044540,0.21887585,91376.0,91375.0,0.02256672]
[1764931044744,0.21887585,91376.0,91375.0,0.02156672]
[1764931045186,0.21887585,91376.0,91375.0,0.02256672]
[1764931045398,0.25812585,91376.0,91375.0,0.02256672]
[1764931045779,0.23528585,91376.0,91375.0,0.02256672]
[1764931047928,0.21887585,91376.0,91375.0,0.02256672]
[1764931050083,0.23487931,91377.0,91376.0,0.02156672]
[1764931050281,0.00506,91377.0,91376.0,0.02156672]
[1764931050512,0.22393345,91377.0,91376.0,0.02156672]
[1764931051085,0.22393345,91377.0,91376.0,0.02256672]
[1764931052691,0.26318345,91377.0,91376.0,0.02256672]
[1764931053612,0.26318345,91377.0,91376.0,0.001]
[1764931054601,0.22393345,91377.0,91376.0,0.001]
[1764931054930,0.26318345,91377.0,91376.0,0.001]
[1764931061326,0.35850082,91377.0,91376.0,0.001]
[1764931061557,0.38209018,91377.0,91376.0,0.001]
[1764931062898,0.2188998,91366.0,91346.0,0.01728]
[1764931063110,0.2516908,91366.0,91346.0,0.01728]
[1764931063315,0.2745308,91366.0,91346.0,0.01728]
[1764931063957,0.2755308,91366.0,91346.0,0.01728]
[1764931065109,0.2755308,91366.0,91347.0,0.323]
[1764931065265,0.2785308,91366.0,91347.0,0.323]
[1764931065465,0.2785308,91366.0,91343.0,0.35122774]
[1764931065667,0.2785308,91366.0,91345.0,0.0109475]
[1764931066609,0.2785308,91366.0,91345.0,0.22989706]
[1764931066812,0.2785308,91366.0,91348.0,0.01094714]
[1764931067623,0.2785308,91366.0,91347.0,0.2298925]
[1764931067785,0.2785308,91366.0,91348.0,0.01094714]
[1764931068405,0.2785308,91366.0,91346.0,0.22989043]
[1764931068597,0.2785308,91366.0,91347.0,0.01094726]
[1764931068806,0.2785308,91366.0,91347.0,0.22989252]
[1764931069266,0.2785308,91366.0,91349.0,0.01094702]
[1764931069928,0.2785308,91366.0,91348.0,0.01094714]
[1764931070140,0.2785308,91366.0,91348.0,0.22988957]
[1764931070398,0.2785308,91366.0,91348.0,0.01094714]
[1764931071737,0.2785308,91366.0,91347.0,0.22988801]
[1764931071965,0.2785308,91366.0,91346.0,0.01094738]
[1764931072620,0.2785308,91366.0,91345.0,0.33426]
[1764931072832,0.2785308,91366.0,91346.0,0.01094738]
[1764931073217,0.2785308,91366.0,91348.0,0.01094714]
[1764931073415,0.2785308,91366.0,91348.0,0.22989008]
[1764931073700,0.2785308,91366.0,91348.0,0.22988987]
[1764931073906,0.2785308,91366.0,91349.0,0.01094702]
[1764931074141,0.2785308,91366.0,91348.0,0.22988928]
[1764931074142,0.2785308,91366.0,91348.0,0.01094714]
[1764931074346,0.2785308,91366.0,91349.0,0.01094702]
[1764931074497,0.2785308,91366.0,91351.0,0.01094678]
[1764931074702,0.2785308,91366.0,91350.0,0.0109469]
[1764931074903,0.2785308,91366.0,91348.0,0.01094714]
[1764931075062,0.2785308,91366.0,91349.0,0.01094702]
[1764931075268,0.2785308,91366.0,91350.0,0.0109469]
[1764931075585,0.2785308,91366.0,91349.0,0.01094702]
[1764931075786,0.2785308,91366.0,91349.0,0.22988602]
[1764931076155,0.2785308,91366.0,91349.0,0.01094702]
[1764931076432,0.2785308,91366.0,91350.0,0.0109469]
[1764931076588,0.2785308,91366.0,91351.0,0.21893573]
[1764931076801,0.2785308,91366.0,91352.0,0.22987899]
[1764931076981,0.2785308,91366.0,91355.0,0.22987181]
[1764931077185,0.2785308,91366.0,91354.0,0.01094642]
[1764931077634,0.2785308,91366.0,91354.0,0.22987471]
[1764931077832,0.2785308,91366.0,91354.0,0.01094642]
[1764931078255,0.2785308,91366.0,91353.0,0.01094654]
[1764931078450,0.2785308,91366.0,91354.0,0.2298743]
[1764931078687,0.2785308,91366.0,91355.0,0.0109463]
[1764931079211,0.2785308,91366.0,91353.0,0.22987622]
[1764931079386,0.2785308,91366.0,91351.0,0.2298804]
[1764931079623,0.2785308,91366.0,91347.0,0.21894343]
[1764931079834,0.2785308,91366.0,91347.0,0.22989069]
[1764931080021,0.2785308,91366.0,91347.0,0.01094726]
[1764931080454,0.2785308,91366.0,91346.0,0.22989506]
[1764931080655,0.2785308,91366.0,91348.0,0.21894199]
[1764931080861,0.2785308,91366.0,91348.0,0.01094714]
[1764931081061,0.2785308,91366.0,91348.0,0.2298899]
[1764931081466,0.2785308,91366.0,91347.0,0.22989209]
[1764931081668,0.2785308,91366.0,91348.0,0.01094714]
[1764931082291,0.2785308,91366.0,91347.0,0.01094726]
[1764931082482,0.2785308,91366.0,91346.0,0.01094738]
[1764931082755,0.2785308,91366.0,91345.0,0.3452075]
[1764931083014,0.2785308,91366.0,91345.0,0.33426]
[1764931083191,0.2785308,91366.0,91347.0,0.21894476]
[1764931084053,0.2785308,91366.0,91349.0,0.01094702]
[1764931084496,0.2785308,91366.0,91350.0,0.0109469]
[1764931084697,0.2785308,91366.0,91353.0,0.21892973]
[1764931084838,0.2785308,91366.0,91352.0,0.22987991]
[1764931085043,0.2785308,91366.0,91353.0,0.01094654]
[1764931085464,0.2785308,91366.0,91352.0,0.22987991]
[1764931085668,0.2621498,91366.0,91356.0,0.21892347]
[1764931085879,0.2621498,91366.0,91356.0,0.02220618]
[1764931086082,0.2621498,91366.0,91362.0,0.01094546]
[1764931086440,0.2228998,91366.0,91363.0,0.01094534]
[1764931086615,0.004,91366.0,91365.0,0.38553628]
[1764931087037,0.004,91366.0,91365.0,0.34468628]
[1764931087241,0.2218998,91366.0,91365.0,0.34468628]
[1764931087394,0.003,91366.0,91365.0,0.60443848]
[1764931087593,0.003,91366.0,91365.0,0.58002848]
[1764931087995,0.22982439,91376.0,91375.0,0.02156672]
[1764931088404,0.01094379,91376.0,91375.0,0.02156672]
[1764931088625,0.22981964,91376.0,91375.0,0.02156672]
[1764931089645,0.2298176,91377.0,91375.0,0.02156672]
[1764931089855,0.01094343,91379.0,91376.0,0.01644]
[1764931090057,0.21888295,91374.0,91373.0,0.02156672]
[1764931091620,0.21888064,91374.0,91373.0,0.02156672]
[1764931092675,0.21888543,91372.0,91371.0,0.01728]
[1764931092847,0.21888543,91372.0,91367.0,0.54189718]
[1764931092848,0.21889501,91368.0,91367.0,0.34028]
[1764931093449,0.23404501,91368.0,91367.0,0.323]
[1764931093681,0.2188998,91366.0,91365.0,0.00011956]
[1764931093909,0.2459098,91366.0,91365.0,0.00011956]
[1764931094092,0.2701298,91366.0,91365.0,0.00011956]
[1764931094502,0.2459098,91366.0,91365.0,0.00011956]
[1764931095335,0.2459098,91366.0,91365.0,0.00211956]
[1764931096346,0.2188998,91366.0,91365.0,0.00211956]
[1764931098479,0.2581998,91366.0,91365.0,0.00211956]
[1764931099636,0.2581998,91366.0,91365.0,0.00011956]
[1764931099850,0.2581998,91366.0,91365.0,0.00111956]
[1764931100102,0.2581998,91366.0,91365.0,0.00011956]
[1764931100511,0.2581998,91366.0,91365.0,0.00111956]
[1764931100680,0.2581998,91366.0,91365.0,0.00011956]
[1764931101090,0.2611998,91366.0,91365.0,0.00011956]
[1764931102700,0.2621998,91366.0,91365.0,0.00011956]
[1764931110063,0.2611998,91366.0,91365.0,0.00011956]
[1764931110434,0.2581998,91366.0,91365.0,0.00011956]
[1764931110615,0.2591998,91366.0,91365.0,0.00011956]
[1764931112430,0.2198998,91366.0,91365.0,0.00011956]
[1764931112630,0.2198998,91366.0,91365.0,0.02168628]
[1764931113222,0.001,91366.0,91365.0,0.07292628]
[1764931113461,0.2198998,91366.0,91365.0,0.07292628]
[1764931113678,0.001,91366.0,91365.0,0.07292628]
[1764931113988,0.001,91366.0,91365.0,0.61482848]
[1764931115303,0.22982414,91375.0,91371.0,0.21888608]
[1764931115505,0.22981771,91377.0,91376.0,0.02156672]
[1764931116760,0.01094343,91379.0,91378.0,0.02156672]
[1764931117169,0.22981209,91379.0,91378.0,0.02156672]
[1764931118714,0.23481209,91379.0,91378.0,0.02156672]
[1764931119041,0.25903209,91379.0,91378.0,0.02156672]
[1764931119247,0.23481209,91379.0,91378.0,0.02156672]
[1764931119691,0.01094403,91374.0,91371.0,0.01164]
[1764931119904,0.01094403,91374.0,91373.0,0.02156672]
[1764931120093,0.22982467,91374.0,91373.0,0.02156672]
[1764931120494,0.22982467,91374.0,91369.0,0.24147553]
[1764931120495,0.01094427,91372.0,91369.0,0.21889163]
[1764931120941,0.001,91374.0,91373.0,0.02156672]
[1764931121093,0.21988064,91374.0,91373.0,0.02156672]
[1764931121695,0.22088064,91374.0,91373.0,0.02156672]
[1764931121878,0.21888064,91374.0,91373.0,0.02156672]
[1764931122283,0.21888064,91374.0,91368.0,0.35122475]
[1764931122284,0.21889262,91369.0,91368.0,0.01728]
[1764931122711,0.21798519,91369.0,91368.0,0.01728]
[1764931122911,0.01248,91370.0,91368.0,0.01728]
[1764931123132,0.01248,91370.0,91368.0,0.23617346]
[1764931123345,0.001,91369.0,91368.0,0.23617346]
[1764931123546,0.001,91369.0,91368.0,0.25774018]
[1764931124277,0.001,91369.0,91368.0,0.01728]
[1764931124579,0.001,91369.0,91368.0,0.03884672]
[1764931124760,0.002,91369.0,91368.0,0.03884672]
[1764931125169,0.002,91369.0,91368.0,0.01728]
[1764931125381,0.2188998,91366.0,91365.0,0.02168628]
[1764931125583,0.2350298,91366.0,91365.0,0.00011956]
[1764931125745,0.2599998,91366.0,91365.0,0.00011956]
[1764931127891,0.2609998,91366.0,91365.0,0.00011956]
[1764931129280,0.2599998,91366.0,91365.0,0.00011956]
[1764931129481,0.2609998,91366.0,91365.0,0.00011956]
[1764931130554,0.2599998,91366.0,91365.0,0.00011956]
[1764931130972,0.2609998,91366.0,91365.0,0.00011956]
[1764931131443,0.2629998,91366.0,91365.0,0.00011956]
[1764931131644,0.2619998,91366.0,91365.0,0.00011956]
[1764931131848,0.2599998,91366.0,91365.0,0.00011956]
[1764931132684,0.2629998,91366.0,91365.0,0.00011956]
[1764931133109,0.2639998,91366.0,91365.0,0.00011956]
[1764931149091,0.2228998,91366.0,91365.0,0.00011956]
[1764931149927,0.2228998,91366.0,91365.0,0.02168628]
[1764931150484,0.2228998,91366.0,91365.0,0.00011956]
[1764931153039,0.2228998,91366.0,91365.0,0.02168628]
[1764931153502,0.2478698,91366.0,91365.0,0.02168628]
[1764931153678,0.2639998,91366.0,91365.0,0.00011956]
[1764931157816,0.2390298,91366.0,91365.0,0.00011956]
[1764931157993,0.2390298,91366.0,91365.0,0.02168628]
[1764931159430,0.2634098,91366.0,91365.0,0.02168628]
[1764931161574,0.2390298,91366.0,91365.0,0.02168628]
[1764931161890,0.2382998,91366.0,91365.0,0.00011956]
[1764931162105,0.2626798,91366.0,91365.0,0.00011956]
[1764931165702,0.004,91366.0,91365.0,0.00011956]
[1764931165910,0.004,91366.0,91365.0,0.61491848]
[1764931166721,0.01094367,91377.0,91376.0,0.02156672]
[1764931167092,0.22788967,91378.0,91376.0,0.05133]
[1764931167285,0.22788967,91378.0,91377.0,0.02156672]
[1764931169789,0.22788967,91378.0,91377.0,0.02256672]
[1764931176374,0.21885176,91387.0,91381.0,0.02156672]
[1764931176673,0.21885176,91387.0,91386.0,0.02156672]
[1764931176851,0.21885176,91387.0,91386.0,0.04852672]
[1764931177054,0.23923135,91388.0,91387.0,0.24041622]
[1764931177055,0.228289,91388.0,91387.0,0.24041622]
[1764931177257,0.228289,91388.0,91387.0,0.60308622]
[1764931179189,0.229289,91388.0,91387.0,0.60308622]
[1764931179341,0.230289,91388.0,91387.0,0.60308622]
[1764931182113,0.230289,91388.0,91387.0,0.5815195]
[1764931182315,0.230289,91388.0,91387.0,0.60308622]
[1764931185411,0.229289,91388.0,91387.0,0.60308622]
[1764931185678,0.228289,91388.0,91387.0,0.60308622]
[1764931186138,0.228289,91388.0,91387.0,0.60708622]
[1764931191557,0.228289,91388.0,91387.0,0.5611495]
[1764931191763,0.228289,91388.0,91387.0,0.58271622]
[1764931191903,0.228289,91388.0,91387.0,0.60620622]
[1764931192105,0.44713611,91388.0,91387.0,0.34428]
[1764931192342,0.44713611,91388.0,91387.0,0.36584672]
[1764931192925,0.44713611,91388.0,91387.0,0.34428]
[1764931194031,0.44713611,91388.0,91387.0,0.36584672]
[1764931194228,0.44713611,91388.0,91387.0,0.36184672]
[1764931194638,0.44713611,91388.0,91387.0,0.36484672]
[1764931194836,0.44713611,91388.0,91387.0,0.36184672]
[1764931195042,0.44713611,91388.0,91387.0,0.36384672]
[1764931195245,0.228289,91388.0,91387.0,0.40250672]
[1764931195450,0.228289,91388.0,91387.0,0.62135622]
[1764931199408,0.44713611,91388.0,91387.0,0.41465672]
[1764931200369,0.228289,91388.0,91387.0,0.63350622]
[1764931202383,0.228289,91388.0,91387.0,0.37599672]
[1764931202808,0.228289,91388.0,91387.0,0.59484622]
[1764931203415,0.228289,91388.0,91387.0,0.63350622]
[1764931209425,0.228289,91388.0,91387.0,0.6119395]
[1764931209679,0.228289,91388.0,91387.0,0.63350622]
[1764931215154,0.228289,91388.0,91387.0,0.86749722]
[1764931215759,0.228289,91388.0,91387.0,0.93002021]
[1764931216102,0.228289,91388.0,91387.0,0.92802021]
[1764931216278,0.228289,91388.0,91387.0,0.93502021]
[1764931216483,0.228289,91388.0,91387.0,0.93602021]
[1764931222230,0.228289,91388.0,91387.0,0.91874021]
[1764931222432,0.228289,91388.0,91387.0,0.93602021]
[1764931227991,0.228289,91388.0,91387.0,0.91874021]
[1764931228181,0.228289,91388.0,91387.0,0.93602021]
[1764931229704,0.228289,91388.0,91387.0,0.8346505]
[1764931229925,0.228289,91388.0,91387.0,0.63950622]
[1764931230291,0.228289,91388.0,91387.0,0.62222622]
[1764931230505,0.228289,91388.0,91387.0,0.008]
[1764931230506,0.44713611,91388.0,91387.0,0.008]
[1764931230911,0.48674611,91388.0,91387.0,0.008]
[1764931231292,0.46332611,91388.0,91387.0,0.02956672]
[1764931231486,0.44713611,91388.0,91387.0,0.02256672]
[1764931232828,0.48674611,91388.0,91387.0,0.02256672]
[1764931235612,0.48674611,91388.0,91387.0,0.001]
[1764931237296,0.21886995,91379.0,91378.0,0.02156672]
[1764931238517,0.23505995,91379.0,91378.0,0.02156672]
[1764931238720,0.21888303,91373.0,91372.0,0.02156672]
[1764931238876,0.21888303,91373.0,91365.0,0.22996569]
[1764931238877,0.21889741,91367.0,91366.0,0.02156672]
[1764931239077,0.01094475,91368.0,91367.0,0.34456672]
[1764931239439,0.21888835,91371.0,91369.0,0.323]
[1764931239648,0.21888703,91372.0,91369.0,0.323]
[1764931239856,0.21889022,91370.0,91369.0,0.323]
[1764931240041,0.01619,91370.0,91369.0,0.323]
[1764931240183,0.23508022,91370.0,91369.0,0.323]
[1764931240378,0.23508022,91370.0,91368.0,0.02156672]
[1764931240900,0.21888565,91372.0,91369.0,0.23383725]
[1764931241120,0.22982718,91373.0,91370.0,0.323]
[1764931241340,0.22982718,91373.0,91370.0,0.54188996]
[1764931241569,0.21888585,91372.0,91370.0,0.323]
[1764931241786,0.21888783,91371.0,91370.0,0.323]
[1764931242345,0.21888783,91371.0,91368.0,0.57440541]
[1764931242549,0.22983222,91371.0,91368.0,0.57440541]
[1764931242983,0.22983222,91371.0,91369.0,0.002]
[1764931243211,0.22982467,91374.0,91373.0,0.02156672]
[1764931244097,0.22981813,91377.0,91373.0,0.02156672]
[1764931244329,0.01094307,91382.0,91379.0,0.01094343]
[1764931244540,0.22980681,91382.0,91381.0,0.02156672]
[1764931244920,0.24553681,91382.0,91381.0,0.02156672]
[1764931245090,0.21886894,91379.0,91377.0,0.01094367]
[1764931245306,0.21886894,91379.0,91377.0,0.22981696]
[1764931245510,0.21886894,91379.0,91377.0,0.01094367]
[1764931246282,0.22980749,91381.0,91377.0,0.22981699]
[1764931246449,0.22980749,91381.0,91376.0,0.01094379]
[1764931246450,0.01094343,91379.0,91376.0,0.01094379]
[1764931246655,0.22981242,91379.0,91376.0,0.22981913]
[1764931247037,0.22981242,91379.0,91377.0,0.21887343]
[1764931248103,0.22981159,91380.0,91377.0,0.21887343]
[1764931248314,0.22981282,91379.0,91376.0,0.22981913]
[1764931248869,0.22981524,91378.0,91375.0,0.22982111]
[1764931249308,0.2188742,91377.0,91375.0,0.22982111]
[1764931250545,0.22981524,91378.0,91375.0,0.22982111]
[1764931251119,0.22981233,91379.0,91376.0,0.22981781]
[1764931251285,0.21887248,91378.0,91376.0,0.01094379]
[1764931251491,0.21887248,91378.0,91376.0,0.2298196]
[1764931251686,0.01094331,91380.0,91376.0,0.01094379]
[1764931252023,0.22981091,91380.0,91377.0,0.22981551]
[1764931253047,0.2188687,91379.0,91377.0,0.22981551]
[1764931253565,0.22981091,91380.0,91377.0,0.22981551]
[1764931253774,0.003,91380.0,91379.0,0.23501866]
[1764931253927,0.01094307,91382.0,91381.0,0.02156672]
[1764931254282,0.2188658,91381.0,91380.0,0.02156672]
[1764931254656,0.22980899,91381.0,91380.0,0.02156672]
[1764931255043,0.22981211,91379.0,91378.0,0.02156672]
[1764931255263,0.23281211,91379.0,91378.0,0.02156672]
[1764931255442,0.22981211,91379.0,91378.0,0.02156672]
[1764931256579,0.23281211,91379.0,91378.0,0.02156672]